[Event "10th Uppsala Young Champions 2023"]
[Site "Uppsala"]
[Date "2023.11.01"]
[Round "8.9"]
[White "Valcu, Lavinia"]
[Black "Muntean, Victor"]
[Result "*"]
[ECO "A80"]
[WhiteElo "1990"]
[BlackElo "2092"]
[Annotator "RC"]
[PlyCount "89"]
[EventDate "2023.10.27"]
[EventType "swiss"]
[EventCountry "SWE"]
[SourceTitle "playchess.com"]
[Source "ChessBase"]
[SourceQuality "1"]
[TimeControl "5400+30"]

1. d4 {[%emt 0:00:01]} f5 {[%emt 0:00:51]} 2. Nc3 {[%emt 0:00:14]} Nf6 {[%emt 0:00:05]} 3. Bg5 {[%emt 0:00:06]} d5 {[%emt 0:02:13]} 4. e3 {[%emt 0:01:30]} Nbd7 {[%emt 0:02:15]} 5. Nf3 {[%emt 0:11:15]} e6 {[%emt 1:27:36]} 6. Be2 {[%emt 0:09:17]} Be7 {[%emt 0:03:27]} 7. Ne5 {[%emt 0:06:18]} Nxe5 {[%emt 0:04:10]} 8. dxe5 {[%emt 0:00:24]} Nd7 {[%emt 0:00:09]} 9. Bxe7 {[%emt 0:00:23]} Qxe7 {[%emt 0:00:04]} 10. f4 {[%emt 0:00:36]} Nb6 {[%emt 0:02:11]} 11. O-O {[%emt 0:03:12]} Bd7 {[%emt 0:02:14]} 12. b3 {[%emt 0:03:51]} O-O-O {[%emt 0:06:53]} 13. a4 {[%emt 0:02:21]} g5 {[%emt 0:05:19]} 14. a5 {[%emt 0:07:09]} Na8 {[%emt 0:00:46]} 15. Na4 {[%emt 0:51:23]} gxf4 {[%emt 0:05:45]} 16. Qd4 {[%emt 0:04:24]} Bxa4 {[%emt 0:03:09]} 17. Qxa7 {[%emt 0:01:03]} Bc6 {[%emt 0:00:29]} 18. Qxa8+ {[%emt 0:00:21]} Kd7 {[%emt 0:00:04]} 19. Qa7 {[%emt 0:00:10]} Ra8 {[%emt 0:00:37]} 20. Qd4 {[%emt 0:00:11]} fxe3 {[%emt 0:00:16]} 21. b4 {[%emt 0:04:17]} Ke8 {[%emt 0:03:20]} 22. b5 {[%emt 0:02:28]} Bd7 {[%emt 0:00:06]} 23. b6 {[%emt 0:08:37]} c5 {[%emt 0:03:07]} 24. Qxe3 {[%emt 0:00:07]} Bc6 {[%emt 0:00:25]} 25. c3 {[%emt 0:04:36]} Rg8 {[%emt 0:01:05]} 26. Rf2 {[%emt 0:00:24]} d4 {[%emt 0:06:41]} 27. cxd4 {[%emt 0:01:22]} cxd4 {[%emt 0:00:04]} 28. Qxd4 {[%emt 0:02:12]} Qg5 {[%emt 0:01:34]} 29. Bf1 {[%emt 0:05:41]} Rd8 {[%emt 0:01:51]} 30. Qf4 {[%emt 0:00:12]} Qxf4 {[%emt 0:02:02]} 31. Rxf4 {[%emt 0:00:07]} Rd5 {[%emt 0:00:10]} 32. Rc4 {[%emt 0:03:43]} Kd7 {[%emt 0:02:01]} 33. a6 {[%emt 0:00:07]} bxa6 {[%emt 0:02:15]} 34. Rxa6 {[%emt 0:00:07]} Rxe5 {[%emt 0:00:56]} 35. Ra7+ {[%emt 0:03:06]} Kd6 {[%emt 0:00:25]} 36. Rxh7 {[%emt 0:03:58]} Re1 {[%emt 0:01:51]} 37. Kf2 {[%emt 0:00:38]} Rb1 {[%emt 0:02:02]} 38. Rc2 {[%emt 0:00:09]} Rxb6 {[%emt 0:00:35]} 39. g3 {[%emt 0:00:17]} Be4 {[%emt 0:00:33]} 40. Rd2+ {[%emt 0:00:06]} Ke5 {[%emt 0:00:07]} 41. Bg2 {[%emt 0:00:33]} Rgb8 {[%emt 0:02:36]} 42. Bxe4 {[%emt 0:00:31]} Kxe4 {[%emt 0:00:06]} 43. Rhd7 {[%emt 0:00:42]} Rb2 {[%emt 0:00:35]} 44. R7d4+ {[%emt 0:00:57]} Ke5 {[%emt 0:00:06]} 45. h4 {[%emt 0:00:13]} *

[Event "10th Uppsala Young Champions 2023"]
[Site "Uppsala"]
[Date "2023.11.01"]
[Round "8.10"]
[White "Steiners, Emils"]
[Black "Ostensson, Julia"]
[Result "*"]
[ECO "E74"]
[WhiteElo "1914"]
[BlackElo "1878"]
[Annotator "RC"]
[PlyCount "20"]
[EventDate "2023.10.27"]
[EventType "swiss"]
[EventCountry "SWE"]
[SourceTitle "playchess.com"]
[Source "ChessBase"]
[SourceQuality "1"]
[TimeControl "5400+30"]

1. d4 {[%emt 0:00:03]} Nf6 {[%emt 0:00:05]} 2. c4 {[%emt 0:00:05]} g6 {[%emt 0:00:03]} 3. Nc3 {[%emt 0:00:05]} Bg7 {[%emt 0:00:06]} 4. e4 {[%emt 0:00:09]} d6 {[%emt 0:00:03]} 5. Be2 {[%emt 0:00:05]} O-O {[%emt 0:00:08]} 6. Bg5 {[%emt 0:00:05]} c5 {[%emt 0:00:05]} 7. d5 {[%emt 0:00:05]} h6 {[%emt 0:00:06]} 8. Be3 {[%emt 0:00:05]} e6 {[%emt 0:00:05]} 9. Qd2 {[%emt 0:00:03]} exd5 {[%emt 0:00:06]} 10. exd5 {[%emt 0:00:22]} Kh7 {[%emt 0:00:07]} *

[Event "10th Uppsala Young Champions 2023"]
[Site "Uppsala"]
[Date "2023.11.01"]
[Round "8.11"]
[White "Nilsson, Oliver"]
[Black "Frank, Anton"]
[Result "*"]
[ECO "B13"]
[WhiteElo "1933"]
[BlackElo "1997"]
[Annotator "RC"]
[PlyCount "68"]
[EventDate "2023.10.27"]
[EventType "swiss"]
[EventCountry "SWE"]
[SourceTitle "playchess.com"]
[Source "ChessBase"]
[SourceQuality "1"]
[TimeControl "5400+30"]

1. e4 {[%emt 0:00:12]} c6 {[%emt 0:00:20]} 2. d4 {[%emt 0:00:30]} d5 {[%emt 0:00:06]} 3. exd5 {[%emt 0:00:28]} cxd5 {[%emt 0:00:07]} 4. Bd3 {[%emt 0:00:03]} Nc6 {[%emt 0:00:06]} 5. c3 {[%emt 0:00:03]} Nf6 {[%emt 0:00:25]} 6. Bf4 {[%emt 0:00:26]} Bg4 {[%emt 0:00:08]} 7. Qb3 {[%emt 0:00:03]} Qd7 {[%emt 0:00:10]} 8. Nd2 {[%emt 0:00:40]} e6 {[%emt 0:00:08]} 9. Ngf3 {[%emt 0:00:05]} Bd6 {[%emt 0:00:08]} 10. Bxd6 {[%emt 0:00:30]} Qxd6 {[%emt 0:00:06]} 11. O-O {[%emt 1:33:00]} O-O {[%emt 0:01:24]} 12. Rae1 {[%emt 0:00:02]} Ne7 {[%emt 0:01:29]} 13. Ne5 {[%emt 1:33:53]} Bf5 {[%emt 0:00:07]} 14. f4 {[%emt 0:03:17]} Bxd3 {[%emt 0:10:29]} 15. Nxd3 {[%emt 0:00:14]} b5 {[%emt 0:00:05]} 16. Qd1 {[%emt 0:01:31]} a5 {[%emt 0:05:28]} 17. a3 {[%emt 0:00:09]} Nc6 {[%emt 0:12:16]} 18. f5 {[%emt 0:11:27]} b4 {[%emt 0:04:50]} 19. fxe6 {[%emt 0:03:37]} fxe6 {[%emt 0:00:11]} 20. a4 {[%emt 0:02:34]} bxc3 {[%emt 0:02:12]} 21. bxc3 {[%emt 0:00:39]} Rae8 {[%emt 0:00:10]} 22. Qb3 {[%emt 0:29:22]} e5 {[%emt 0:22:16]} 23. Ne4 {[%emt 0:09:19]} Nxe4 {[%emt 0:02:26]} 24. Rxe4 {[%emt 0:01:38]} Rxf1+ {[%emt 0:04:11]} 25. Kxf1 {[%emt 0:00:06]} Rb8 {[%emt 0:00:45]} 26. Qa2 {[%emt 0:00:55]} exd4 {[%emt 0:02:13]} 27. cxd4 {[%emt 0:01:24]} Rd8 {[%emt 0:02:17]} 28. g3 {[%emt 0:08:47]} Qg6 {[%emt 0:02:43]} 29. Nc5 {[%emt 0:02:08]} Nb4 {[%emt 0:04:32]} 30. Qb3 {[%emt 0:00:46]} Rf8+ {[%emt 0:01:44]} 31. Kg2 {[%emt 0:00:13]} Qh6 {[%emt 0:01:26]} 32. Rf4 {[%emt 0:08:51]} Rxf4 {[%emt 0:01:31]} 33. gxf4 {[%emt 0:15:41]} Qxf4 {[%emt 0:00:05]} 34. Qh3 {[%emt 0:00:17]} h6 {[%emt 0:03:24]} *

[Event "10th Uppsala Young Champions 2023"]
[Site "Uppsala"]
[Date "2023.11.01"]
[Round "9.1"]
[White "Gavrilescu, David"]
[Black "Grahn, Vidar"]
[Result "1-0"]
[ECO "B48"]
[WhiteElo "2534"]
[BlackElo "2133"]
[Annotator "RC"]
[PlyCount "63"]
[EventDate "2023.10.27"]
[EventType "swiss"]
[EventCountry "SWE"]
[SourceTitle "playchess.com"]
[Source "ChessBase"]
[SourceQuality "1"]
[TimeControl "5400+30"]

1. e4 {[%emt 0:00:08]} c5 {[%emt 0:00:03]} 2. Nf3 {[%emt 0:00:08]} e6 {[%emt 0:00:02]} 3. d4 {[%emt 0:00:15]} cxd4 {[%emt 0:00:04]} 4. Nxd4 {[%emt 0:00:07]} Nc6 {[%emt 0:00:02]} 5. a3 {[%emt 0:00:11]} a6 {[%emt 0:01:37]} 6. Be3 {[%emt 0:00:33]} Nf6 {[%emt 0:03:36]} 7. Nc3 {[%emt 0:00:45]} Qc7 {[%emt 0:01:49]} 8. f4 {[%emt 0:00:22]} d5 {[%emt 0:07:23]} 9. e5 {[%emt 0:01:25]} Ne4 {[%emt 0:04:05]} 10. Nxe4 {[%emt 0:03:32]} dxe4 {[%emt 0:00:11]} 11. Be2 {[%emt 0:01:36]} b5 {[%emt 0:05:03]} 12. O-O {[%emt 0:15:33]} Bc5 {[%emt 0:04:54]} 13. Kh1 {[%emt 0:04:05]} Nxd4 {[%emt 0:02:09]} 14. Bxd4 {[%emt 0:00:15]} O-O {[%emt 0:00:49]} 15. Bxc5 {[%emt 0:04:33]} Qxc5 {[%emt 0:00:07]} 16. c4 {[%emt 0:00:04]} b4 {[%emt 0:02:25]} 17. Qd6 {[%emt 0:02:09]} Qe3 {[%emt 0:02:59]} 18. Bg4 {[%emt 0:05:15]} bxa3 {[%emt 0:03:48]} 19. Rxa3 {[%emt 0:02:51]} Qa7 {[%emt 0:00:12]} 20. Rg3 {[%emt 0:24:06]} Rb8 {[%emt 0:04:08]} 21. b3 {[%emt 0:00:56]} e3 {[%emt 0:03:37]} 22. Qd3 {[%emt 0:00:42]} Bb7 {[%emt 0:01:36]} 23. Rd1 {[%emt 0:02:38]} Qa8 {[%emt 0:01:58]} 24. Qxe3 {[%emt 0:00:35]} Rfd8 {[%emt 0:01:16]} 25. Rd6 {[%emt 0:01:09]} Be4 {[%emt 0:03:17]} 26. h3 {[%emt 0:00:30]} a5 {[%emt 0:01:43]} 27. Kh2 {[%emt 0:02:45]} Qb7 {[%emt 0:45:07]} 28. Qd4 {[%emt 0:00:23]} Rdc8 {[%emt 0:00:00]} 29. Bxe6 {[%emt 0:02:19]} fxe6 {[%emt 0:00:00]} 30. Rd7 {[%emt 0:00:05]} Qc6 {[%emt 0:00:00]} 31. Rgxg7+ {[%emt 0:00:05]} Kh8 {[%emt 0:00:00]} 32. Qa7 {[%emt 0:00:12]} 1-0

[Event "10th Uppsala Young Champions 2023"]
[Site "Uppsala"]
[Date "2023.11.01"]
[Round "9.2"]
[White "Sorensen, Hampus"]
[Black "Seiger, Vidar"]
[Result "1-0"]
[ECO "E70"]
[WhiteElo "2470"]
[BlackElo "1908"]
[Annotator "ChessBase"]
[PlyCount "45"]
[EventDate "2023.10.27"]
[EventType "swiss"]
[EventCountry "SWE"]
[SourceTitle "playchess.com"]
[Source "ChessBase"]
[SourceQuality "1"]
[TimeControl "5400+30"]

1. d4 {[%emt 0:00:05]} Nf6 {[%emt 0:02:18]} 2. c4 {[%emt 0:00:05]} g6 {[%emt 0:00:09]} 3. Nc3 {[%emt 0:00:04]} Bg7 {[%emt 0:00:05]} 4. e4 {[%emt 0:00:08]} O-O {[%emt 0:00:07]} 5. h3 {[%emt 0:00:33]} Nc6 {[%emt 0:01:21]} 6. d5 {[%emt 0:03:11]} Nb4 {[%emt 0:00:05]} 7. Nge2 {[%emt 0:04:28]} d6 {[%emt 0:00:39]} 8. Ng3 {[%emt 0:00:35]} c6 {[%emt 0:02:10]} 9. Be2 {[%emt 0:00:40]} e6 {[%emt 0:01:38]} 10. dxe6 {[%emt 0:02:28]} Bxe6 {[%emt 0:00:07]} 11. Be3 {[%emt 0:04:18]} Qe7 {[%emt 0:02:03]} 12. O-O {[%emt 0:04:26]} Rad8 {[%emt 0:05:17]} 13. a3 {[%emt 0:09:52]} Na6 {[%emt 0:00:19]} 14. Bd4 {[%emt 0:00:07]} h5 {[%emt 0:04:00]} 15. Re1 {[%emt 0:01:24]} h4 {[%emt 0:04:58]} 16. Nf1 {[%emt 0:00:08]} d5 {[%emt 0:00:25]} 17. cxd5 {[%emt 0:02:11]} Nc5 {[%emt 0:02:43]} 18. dxe6 {[%emt 0:10:55]} Qxe6 {[%emt 0:01:53]} 19. Bxc5 {[%emt 0:01:09]} Rxd1 {[%emt 0:00:25]} 20. Raxd1 {[%emt 0:00:02]} Re8 {[%emt 0:01:24]} 21. Nd2 {[%emt 0:04:25]} Nd7 {[%emt 1:08:54]} 22. Be3 {[%emt 0:01:05]} b5 {[%emt 0:00:00]} 23. Bxa7 {[%emt 0:02:00]} 1-0

[Event "10th Uppsala Young Champions 2023"]
[Site "Uppsala"]
[Date "2023.11.01"]
[Round "9.3"]
[White "Omarsson, Adam"]
[Black "Falkevall, Axel"]
[Result "0-1"]
[ECO "E94"]
[WhiteElo "1946"]
[BlackElo "2280"]
[Annotator "ChessBase"]
[PlyCount "72"]
[EventDate "2023.10.27"]
[EventType "swiss"]
[EventCountry "SWE"]
[SourceTitle "playchess.com"]
[Source "ChessBase"]
[SourceQuality "1"]
[TimeControl "5400+30"]

1. d4 {[%emt 0:00:03]} Nf6 {[%emt 0:00:06]} 2. c4 {[%emt 0:00:04]} g6 {[%emt 0:00:08]} 3. Nc3 {[%emt 0:00:06]} Bg7 {[%emt 0:00:04]} 4. e4 {[%emt 0:00:07]} d6 {[%emt 0:00:04]} 5. Nf3 {[%emt 0:00:07]} O-O {[%emt 0:00:05]} 6. Be2 {[%emt 0:00:06]} e5 {[%emt 0:00:04]} 7. d5 {[%emt 0:00:07]} Nbd7 {[%emt 0:00:06]} 8. O-O {[%emt 0:00:07]} Nc5 {[%emt 0:00:02]} 9. Qc2 {[%emt 0:00:06]} a5 {[%emt 0:00:05]} 10. Bg5 {[%emt 0:00:06]} h6 {[%emt 0:00:05]} 11. Be3 {[%emt 0:00:05]} b6 {[%emt 0:00:04]} 12. Nd2 {[%emt 0:00:06]} Nh7 {[%emt 0:00:06]} 13. a3 {[%emt 0:00:18]} f5 {[%emt 0:00:25]} 14. f3 {[%emt 0:06:29]} a4 {[%emt 0:01:50]} 15. Bxc5 {[%emt 0:03:47]} bxc5 {[%emt 0:00:10]} 16. Nxa4 {[%emt 0:00:07]} h5 {[%emt 0:01:27]} 17. b4 {[%emt 0:02:23]} Bh6 {[%emt 0:02:11]} 18. Nc3 {[%emt 0:03:05]} Be3+ {[%emt 0:01:28]} 19. Kh1 {[%emt 0:00:23]} f4 {[%emt 0:02:51]} 20. Nb3 {[%emt 0:03:05]} g5 {[%emt 0:04:41]} 21. Nd1 {[%emt 0:01:03]} Bd4 {[%emt 0:02:00]} 22. Nxd4 {[%emt 0:00:21]} cxd4 {[%emt 0:00:06]} 23. c5 {[%emt 0:02:35]} g4 {[%emt 0:02:50]} 24. cxd6 {[%emt 0:07:57]} g3 {[%emt 0:02:42]} 25. Bb5 {[%emt 0:04:01]} Qh4 {[%emt 0:02:08]} 26. h3 {[%emt 0:00:08]} cxd6 {[%emt 0:01:16]} 27. Kg1 {[%emt 0:01:01]} Ng5 {[%emt 0:07:15]} 28. Qc7 {[%emt 0:05:00]} Rf7 {[%emt 0:16:53]} 29. Qxd6 {[%emt 0:02:58]} Rg7 {[%emt 0:01:29]} 30. Qxe5 {[%emt 0:03:09]} Bxh3 {[%emt 0:05:40]} 31. gxh3 {[%emt 0:00:30]} g2 {[%emt 0:02:35]} 32. Qxg7+ {[%emt 0:02:07]} Kxg7 {[%emt 0:00:07]} 33. Kxg2 {[%emt 0:00:06]} Qg3+ {[%emt 0:00:49]} 34. Kh1 {[%emt 0:00:05]} Qxh3+ {[%emt 0:00:17]} 35. Kg1 {[%emt 0:00:05]} Qg3+ {[%emt 0:00:04]} 36. Kh1 {[%emt 0:00:07]} Nxf3 {[%emt 0:00:31]} 0-1

[Event "10th Uppsala Young Champions 2023"]
[Site "Uppsala"]
[Date "2023.11.01"]
[Round "9.5"]
[White "Briem, Stephan"]
[Black "Mai, Alexander Oliver"]
[Result "1/2-1/2"]
[ECO "E11"]
[WhiteElo "2144"]
[BlackElo "2118"]
[Annotator "NA"]
[PlyCount "27"]
[EventDate "2023.10.27"]
[EventType "swiss"]
[EventCountry "SWE"]
[SourceTitle "playchess.com"]
[Source "ChessBase"]
[SourceQuality "1"]
[TimeControl "5400+30"]

1. d4 {[%emt 0:00:02]} Nf6 {[%emt 0:01:38]} 2. c4 {[%emt 0:00:09]} e6 {[%emt 0:00:08]} 3. Nf3 {[%emt 0:00:47]} d5 {[%emt 0:00:12]} 4. g3 {[%emt 0:00:38]} Bb4+ {[%emt 0:00:32]} 5. Bd2 {[%emt 0:01:12]} Be7 {[%emt 0:00:26]} 6. Bg2 {[%emt 0:00:13]} O-O {[%emt 0:00:14]} 7. O-O {[%emt 0:00:31]} c6 {[%emt 0:01:10]} 8. Qc2 {[%emt 0:01:24]} Nbd7 {[%emt 0:01:51]} 9. Rc1 {[%emt 0:02:55]} a5 {[%emt 0:02:34]} 10. Bf4 {[%emt 0:01:47]} Nh5 {[%emt 0:01:48]} 11. Bd2 {[%emt 0:00:59]} Nhf6 {[%emt 0:00:12]} 12. Bf4 {[%emt 0:00:06]} Nh5 {[%emt 0:00:08]} 13. Bd2 {[%emt 0:00:05]} Nhf6 {[%emt 0:00:05]} 14. Bf4 {[%emt 0:00:05]} 1/2-1/2

[Event "10th Uppsala Young Champions 2023"]
[Site "Uppsala"]
[Date "2023.11.01"]
[Round "9.6"]
[White "Morell, Ludvig"]
[Black "Oksendal, Martin"]
[Result "0-1"]
[ECO "B90"]
[WhiteElo "2017"]
[BlackElo "2123"]
[Annotator "NA"]
[PlyCount "76"]
[EventDate "2023.10.27"]
[EventType "swiss"]
[EventCountry "SWE"]
[SourceTitle "playchess.com"]
[Source "ChessBase"]
[SourceQuality "1"]
[TimeControl "5400+30"]

1. e4 {[%emt 0:00:02]} c5 {[%emt 0:00:08]} 2. Nf3 {[%emt 0:00:04]} d6 {[%emt 0:00:07]} 3. d4 {[%emt 0:00:03]} cxd4 {[%emt 0:00:07]} 4. Nxd4 {[%emt 0:00:04]} Nf6 {[%emt 0:00:05]} 5. Nc3 {[%emt 0:00:03]} a6 {[%emt 0:00:17]} 6. f3 {[%emt 0:00:09]} e5 {[%emt 0:00:07]} 7. Nb3 {[%emt 0:00:03]} Be6 {[%emt 0:00:09]} 8. Be3 {[%emt 0:00:04]} h5 {[%emt 0:00:42]} 9. Qd2 {[%emt 0:00:50]} Nbd7 {[%emt 0:00:05]} 10. Nd5 {[%emt 0:00:57]} Bxd5 {[%emt 0:00:23]} 11. exd5 {[%emt 0:00:07]} g6 {[%emt 0:00:06]} 12. Be2 {[%emt 0:03:17]} Bg7 {[%emt 0:00:33]} 13. O-O {[%emt 0:04:57]} b6 {[%emt 0:00:42]} 14. c4 {[%emt 0:00:55]} O-O {[%emt 0:00:49]} 15. Bh6 {[%emt 0:07:28]} a5 {[%emt 0:07:46]} 16. Bxg7 {[%emt 0:08:47]} Kxg7 {[%emt 0:00:06]} 17. a4 {[%emt 0:02:19]} Qc7 {[%emt 0:14:34]} 18. Qc3 {[%emt 0:08:51]} Rfe8 {[%emt 0:09:41]} 19. Bd3 {[%emt 0:01:31]} Nc5 {[%emt 0:12:15]} 20. Nd2 {[%emt 0:04:12]} Rac8 {[%emt 0:11:21]} 21. b3 {[%emt 0:02:30]} Na6 {[%emt 0:06:00]} 22. f4 {[%emt 0:05:06]} Nxd5 {[%emt 0:02:46]} 23. Qb2 {[%emt 0:00:20]} Nf6 {[%emt 0:10:26]} 24. f5 {[%emt 0:02:36]} Nb4 {[%emt 0:23:15]} 25. Qb1 {[%emt 0:07:53]} Qc5+ {[%emt 0:00:00]} 26. Kh1 {[%emt 0:00:06]} Qe3 {[%emt 0:00:00]} 27. fxg6 {[%emt 0:00:29]} Qxd3 {[%emt 0:00:00]} 28. gxf7 {[%emt 0:00:38]} Rf8 {[%emt 0:00:00]} 29. Qe1 {[%emt 0:01:42]} Rxf7 {[%emt 0:00:00]} 30. Rf3 {[%emt 0:00:29]} Qd4 {[%emt 0:00:00]} 31. Qg3+ {[%emt 0:00:33]} Kh7 {[%emt 0:00:00]} 32. Raf1 {[%emt 0:02:12]} Qxd2 {[%emt 0:00:00]} 33. Qh3 {[%emt 0:00:03]} Rcf8 {[%emt 0:00:00]} 34. Qf5+ {[%emt 0:01:39]} Kg8 {[%emt 0:01:38]} 35. Rg3+ {[%emt 0:02:23]} Rg7 {[%emt 0:01:15]} 36. Rg6 {[%emt 0:01:13]} Qd3 {[%emt 0:01:20]} 37. Qe6+ {[%emt 0:00:33]} Kh7 {[%emt 0:00:14]} 38. Rgxf6 {[%emt 0:00:11]} Qxf1+ {[%emt 0:00:05]} 0-1

[Event "10th Uppsala Young Champions 2023"]
[Site "Uppsala"]
[Date "2023.11.01"]
[Round "9.7"]
[White "Ljung, Harald"]
[Black "Morell, Oscar"]
[Result "1/2-1/2"]
[ECO "D30"]
[WhiteElo "2159"]
[BlackElo "1942"]
[Annotator "ChessBase"]
[PlyCount "100"]
[EventDate "2023.10.27"]
[EventType "swiss"]
[EventCountry "SWE"]
[SourceTitle "playchess.com"]
[Source "ChessBase"]
[SourceQuality "1"]
[TimeControl "5400+30"]

1. d4 {[%emt 0:00:01]} Nf6 {[%emt 0:00:22]} 2. Nf3 {[%emt 1:31:29]} e6 {[%emt 0:00:22]} 3. Bg5 {[%emt 0:00:00]} d5 {[%emt 0:00:31]} 4. Nbd2 {[%emt 0:00:00]} Be7 {[%emt 0:01:45]} 5. e3 {[%emt 0:00:00]} O-O {[%emt 0:00:18]} 6. Bd3 {[%emt 0:00:00]} b6 {[%emt 0:00:39]} 7. O-O {[%emt 0:00:00]} Bb7 {[%emt 0:00:18]} 8. c4 {[%emt 0:00:00]} Nbd7 {[%emt 0:01:07]} 9. Rc1 {[%emt 0:00:00]} c5 {[%emt 0:01:58]} 10. cxd5 {[%emt 0:00:00]} exd5 {[%emt 0:03:19]} 11. dxc5 {[%emt 0:00:00]} bxc5 {[%emt 0:02:50]} 12. h3 {[%emt 0:00:00]} Qb6 {[%emt 0:04:24]} 13. Qc2 {[%emt 0:00:00]} Rac8 {[%emt 0:02:00]} 14. Bxh7+ {[%emt 0:00:00]} Nxh7 {[%emt 0:01:51]} 15. Bxe7 {[%emt 0:00:00]} Rfe8 {[%emt 0:00:09]} 16. Bh4 {[%emt 0:00:00]} Nhf8 {[%emt 0:07:07]} 17. Qb3 {[%emt 0:00:00]} Ng6 {[%emt 0:03:32]} 18. Bg3 {[%emt 0:00:00]} Nge5 {[%emt 0:03:59]} 19. Nxe5 {[%emt 0:00:00]} Nxe5 {[%emt 0:00:09]} 20. Bxe5 {[%emt 0:00:00]} Rxe5 {[%emt 0:00:27]} 21. Qxb6 {[%emt 0:00:00]} axb6 {[%emt 0:00:02]} 22. Nf3 {[%emt 0:00:00]} Re4 {[%emt 0:04:31]} 23. a3 {[%emt 0:00:00]} f6 {[%emt 0:00:44]} 24. Rfd1 {[%emt 0:00:00]} Kf7 {[%emt 0:01:21]} 25. Nd2 {[%emt 0:00:00]} Re7 {[%emt 0:03:28]} 26. Nb3 {[%emt 0:00:00]} g5 {[%emt 0:01:41]} 27. a4 {[%emt 0:00:00]} Ra8 {[%emt 0:01:50]} 28. Ra1 {[%emt 0:00:00]} Re4 {[%emt 0:02:56]} 29. a5 {[%emt 0:00:00]} Rb4 {[%emt 0:00:46]} 30. Ra3 {[%emt 0:00:00]} c4 {[%emt 0:00:48]} 31. Nd4 {[%emt 0:00:00]} Rxa5 {[%emt 0:10:42]} 32. Rxa5 {[%emt 0:00:00]} bxa5 {[%emt 0:00:17]} 33. Ra1 {[%emt 0:00:00]} a4 {[%emt 0:06:02]} 34. Ra2 {[%emt 0:00:00]} Ke7 {[%emt 0:02:38]} 35. Kf1 {[%emt 0:00:00]} Kd6 {[%emt 0:02:14]} 36. Ke2 {[%emt 0:00:00]} Bc6 {[%emt 0:01:55]} 37. Kd2 {[%emt 0:00:00]} Bd7 {[%emt 0:01:08]} 38. Kc3 {[%emt 0:00:00]} Rb8 {[%emt 0:01:50]} 39. Ra1 {[%emt 0:00:00]} Kc5 {[%emt 0:02:05]} 40. Re1 {[%emt 0:00:00]} Re8 {[%emt 0:05:16]} 41. Re2 {[%emt 0:00:00]} Re7 {[%emt 0:03:33]} 42. Rd2 {[%emt 0:00:00]} Re8 {[%emt 0:00:37]} 43. Ne2 {[%emt 0:00:00]} Bf5 {[%emt 0:01:12]} 44. Nd4 {[%emt 0:00:00]} Bd7 {[%emt 0:00:14]} 45. Rd1 {[%emt 0:00:00]} Rb8 {[%emt 0:01:17]} 46. Rh1 {[%emt 0:00:00]} Rh8 {[%emt 0:00:27]} 47. f3 {[%emt 0:00:00]} f5 {[%emt 0:03:57]} 48. Re1 {[%emt 0:00:00]} Re8 {[%emt 0:02:53]} 49. Re2 {[%emt 0:00:00]} Re7 {[%emt 0:00:38]} 50. Re1 {[%emt 0:00:00]} Re8 {[%emt 0:00:07]} 1/2-1/2

[Event "10th Uppsala Young Champions 2023"]
[Site "Uppsala"]
[Date "2023.11.01"]
[Round "9.8"]
[White "Muntean, Victor"]
[Black "Steiners, Emils"]
[Result "0-1"]
[ECO "C02"]
[WhiteElo "2092"]
[BlackElo "1914"]
[Annotator "NA"]
[PlyCount "94"]
[EventDate "2023.10.27"]
[EventType "swiss"]
[EventCountry "SWE"]
[SourceTitle "playchess.com"]
[Source "ChessBase"]
[SourceQuality "1"]
[TimeControl "5400+30"]

1. e4 {[%emt 0:00:02]} e6 {[%emt 0:00:03]} 2. d4 {[%emt 0:00:04]} d5 {[%emt 0:00:04]} 3. e5 {[%emt 0:00:03]} c5 {[%emt 0:00:05]} 4. c3 {[%emt 0:00:03]} Nc6 {[%emt 0:00:04]} 5. Nf3 {[%emt 0:00:03]} Qb6 {[%emt 0:00:10]} 6. Bd3 {[%emt 0:00:05]} cxd4 {[%emt 0:00:04]} 7. O-O {[%emt 0:00:05]} Bd7 {[%emt 0:00:04]} 8. Re1 {[%emt 0:00:07]} Rc8 {[%emt 0:02:55]} 9. h4 {[%emt 0:03:43]} a6 {[%emt 0:11:26]} 10. Qe2 {[%emt 0:01:59]} Nge7 {[%emt 0:07:32]} 11. Nbd2 {[%emt 0:01:08]} dxc3 {[%emt 0:00:59]} 12. bxc3 {[%emt 0:00:27]} Na5 {[%emt 0:02:17]} 13. Rb1 {[%emt 0:03:26]} Qa7 {[%emt 0:07:16]} 14. Ba3 {[%emt 0:02:34]} b5 {[%emt 0:04:48]} 15. Ng5 {[%emt 0:06:38]} h6 {[%emt 0:07:39]} 16. Nh7 {[%emt 0:00:52]} Nc4 {[%emt 0:03:57]} 17. Bxc4 {[%emt 0:03:30]} Rxh7 {[%emt 0:07:06]} 18. Bd3 {[%emt 0:00:18]} Rh8 {[%emt 0:00:53]} 19. Nb3 {[%emt 0:06:38]} Nc6 {[%emt 0:02:33]} 20. Bxf8 {[%emt 0:00:10]} Rxf8 {[%emt 0:00:43]} 21. Qg4 {[%emt 0:01:20]} g6 {[%emt 0:04:58]} 22. h5 {[%emt 0:02:03]} gxh5 {[%emt 0:04:40]} 23. Qxh5 {[%emt 0:00:40]} Kd8 {[%emt 0:06:09]} 24. a4 {[%emt 0:02:34]} bxa4 {[%emt 0:01:02]} 25. Qh4+ {[%emt 0:03:12]} Ke8 {[%emt 0:07:25]} 26. Nc1 {[%emt 0:17:38]} Rb8 {[%emt 0:05:46]} 27. Ra1 {[%emt 0:04:37]} Qc5 {[%emt 0:04:38]} 28. Ne2 {[%emt 0:05:32]} a5 {[%emt 0:05:59]} 29. Nf4 {[%emt 0:04:03]} Bc8 {[%emt 0:03:04]} 30. Nh5 {[%emt 0:00:31]} Kd7 {[%emt 0:00:36]} 31. Nf6+ {[%emt 0:03:20]} Kc7 {[%emt 0:00:07]} 32. Qxh6 {[%emt 0:00:05]} Bd7 {[%emt 0:00:39]} 33. c4 {[%emt 0:02:00]} Rb2 {[%emt 0:00:45]} 34. Qf4 {[%emt 0:00:16]} d4 {[%emt 0:00:30]} 35. Rxa4 {[%emt 0:02:18]} Nb4 {[%emt 0:00:21]} 36. Ra3 {[%emt 0:00:32]} Nc2 {[%emt 0:00:32]} 37. Bxc2 {[%emt 0:01:15]} Qxa3 {[%emt 0:00:26]} 38. Qxd4 {[%emt 0:00:08]} Bc6 {[%emt 0:00:27]} 39. Rd1 {[%emt 0:07:04]} Rxc2 {[%emt 0:00:45]} 40. Qa7+ {[%emt 0:00:04]} Kc8 {[%emt 0:00:19]} 41. Nd7 {[%emt 0:00:06]} Rb2 {[%emt 0:00:41]} 42. Nc5 {[%emt 0:00:07]} Rd8 {[%emt 0:00:31]} 43. Qa6+ {[%emt 0:01:02]} Kc7 {[%emt 0:00:22]} 44. Rxd8 {[%emt 0:00:51]} Rb1+ {[%emt 0:00:08]} 45. Kh2 {[%emt 0:00:05]} Rh1+ {[%emt 0:00:05]} 46. Kxh1 {[%emt 0:00:07]} Qh3+ {[%emt 0:00:03]} 47. Kg1 {[%emt 0:00:07]} Qxg2# {[%emt 0:00:04]} 0-1